Workbook

Sheet Drumski most
A1: DRUMSKO-PEŠAČKI MOST
A3: PREDMER RADOVA
A5: R. br. | B5: Broj poz. | C5: OPIS | D5: Jed. mera | E5: Količina | F5: Jedinična cena | G5: Iznos bez PDVa
B6: 51_MO_100 | C6: PRIPREMNI RADOVI
A7: 1 | C7: Privremena saobraćajna signalizacija
C8: Postavljanje odgovarajuće saobraćajne signalizacije i opreme kojom će se obezbediti radovi na sanaciji mosta i izrada Projekta privremene saobraćajne signalizacije
C9: Most će biti zatvoren za saobraćaj za sve vreme obavljanja radova osim za vozila za gradilište.
C10: Obračunava se paušalno. | D10: pauš
A11: 2 | B11: 101 | C11: Geodetski radovi
C12: u toku izvođenja radova. Ova pozicija obuhvata neophodna geodetska merenja radi nivelacije elememata kod izrade predviđenih pozicija radova i izradu svih potrebnih Elaborata geodetskih radova za sve izvedene radove (Elaborati potrebni za dobijanje upotrebne dozvole)
C13: Obračunava se paušalno. | D13: pauš
B14: 51_MO_110 | C14: Čišćenje terena
A15: 3 | B15: 111 | C15: Uklanjanje šuta sa odvozom na gradsku deponiju, raznog otpada, šiblja i granja
C16: u zoni krajnjih stubova, na keglama i ispod mosta celom dužinom.
C17: Obračunava se paušalno. | D17: pauš
B18: 113 | C18: Rušenje i uklanjanje kolovoznih konstrukcija
A19: 4 | B19: 113.1 | C19: Uklanjanje asfalta sa kolovozne ploče mosta sa odvozom na gradsku deponiju
C20: 76.25 · 6.4 | D20: m2 | E20: =76.25*6.4 -> 488.00
B21: 51_MO_120 | C21: OSTALI PRIPREMNI RADOVI
A22: 6 | B22: 121 | C22: Uklanjanje hidroizolacije
C23: u punoj širini mosta i dužini mosta između dilatacija, prema opisu u tehničkim uslovima.
C24: Obračun po m2 uklonjene hidroizolacije I odvoz na gradsku deponiju
C25: 76.25 · 6.4 | D25: m2 | E25: =76.25*6.4 -> 488.00
A26: 7 | B26: 122 | C26: Rušenje i uklanjanje ivičnjaka I odvoz na gradsku deponiju
C27: 2*(76.25+4.65)
C28: Obračun po m1 uklonjenog ivičnjaka | D28: m1 | E28: =2*(76.25+4.65) -> 161.80
A29: 8 | B29: 126 | C29: Uklanjanje betona postojeće ploče za smeštaj slivnika
C30: 6 · 0.25 · 0.6 · 0.4
C31: Obračun po m3 obijenog betona. | D31: m3 | E31: =6*0.25*0.6*0.4 -> 0.36
A32: 9 | B32: 127 | C32: Uklanjanje / demontaža postojeće dilatacije sa odvozom na gradsku deponiju
C33: na oba kraja mosta u dužini 9.0m
C34: 2 · 9
C35: Obračun je dat po m1 uklonjene dilatacije. | D35: m1 | E35: =2*9 -> 18.00
A36: 10 | B36: 130 | C36: Uklanjanje postojeće pešačke ograde sa mosta radi reparacije I popravke u radionici
C37: 2 · 85.6
C38: Obračun po m1 uklonjene ograde | D38: m1 | E38: =2*85.6 -> 171.20
B39: 131 | C39: Uklanjanje objekta ili pojedinih delova objekta
A40: 11 | B40: 131.1 | C40: Rušеnjе cеlоg оbјеktа
C41: rušenje pomoćnog objekta ispod mosta sa odvozom šuta na gradsku deponiju
C42: Obračunava se paušalno. | D42: pauš
A43: 12 | B43: 131.2 | C43: Uklanjanje AB venaca, staze i gredica ograde sa odvozom suta na gradsku deponiju
C44: 2 · 0.43 · 85.6 | D44: m3 | E44: =2*0.43*85.6 -> 73.62
C45: Rušenje zadnjeg parapeta sa odvozom suta na gradsku deponiju
C46: 2 · 0.57 · 0.45 · 6.4 | D46: m3 | E46: =2*0.57*0.45*6.4 -> 3.28
C47: Rušenje ab maski pored pendela sa odvozom suta na gradsku deponiju
C48: 1.15 · 0.84 · 0.1 | D48: m3 | E48: =1.15*0.84*0.1 -> 0.10
A49: 13 | B49: 131.3 | C49: Uklanjanje betona štemovanjem prosečne dubine 10cm sa otklanjanjem suta na gradsku deponiju
C50: Uklanjanje betona ručno (štemanjem) ili mašinskim putem (pikhamerima do 6kg). Štemovanjem treba formirati zonu pravilnog geometrijskog oblika bez isklinjavanja. Šut prikupiti, utovariti na kamion i odneti na gradsku deponiju.
C51: *obalni stubovi
C52: ( 1 · 0.5+0.5 · 3.5 ) · 0.1 +8 · 0.15 · 0.15 | D52: m3 | E52: =(1*0.5+0.5*3.5)*0.1+8*0.15*0.15 -> 0.41
A53: 14 | B53: 131.4 | C53: Linijsko uklanjanje betona, prosečne dubine 2cm sa odvozom na gradsku deponiju
C54: Uklanjanje betona oko korodiralih šipki armature, uključujući i zone sa ispucalim betonom, ručno (štemanjem) ili mašinskim putem (pikhamerima do 6kg). Dubina uklonjenog sloja betona zavisi od očuvanosti athezije između armature i betona i od stepena korozije armature. Ukoliko je očuvana athezija i šipka armature delimično zahvaćena korozijom ne „otkriva“ se komplenta šipka, već samo deo gde je vidljiva korozija. Šut prikupiti, utovariti na kamion i odneti na gradsku deponiju.
C55: *rečni stubovi
C56: 4+3 | D56: m1 | E56: =4+3 -> 7.00
C57: *bočne strane glavnih nosača A, B i C
C58: 45 · 3 | D58: m1 | E58: =45*3 -> 135.00
C59: *konzolna ploča
C60: 1· 75 · 2 | D60: m1 | E60: =1*75*2 -> 150.00
A62: 15 | B62: 131.5 | C62: Površinsko uklanjanje betona, prosečne dubine 3,5cm
C63: Uklanjanje betona sa donje strane glavnih nosača i poprečnih nosača (na celoj dužini u osama 0, T2, 2, T5 i 3 i na pola dužine u osama T1, T8 i T9) , oko korodiralih šipki armature, uključujući i zone sa ispucalim betonom, ručno (štemanjem) ili mašinskim putem (pikhamerima do 6kg). Dubina uklonjenog sloja betona zavisi od očuvanosti athezije između armature i betona i od stepena korozije armature. Šut prikupiti, utovariti na kamion i odneti na gradsku deponiju. Obračun po m2 uklonjenog betona
C64: *glavni podužni nosači u osama A, B i C
C65: 0.4 · 75.4 · 3 | D65: m2 | E65: =0.4*75.4*3 -> 90.48
C66: *poprečni nosači
C67: 2 · 2.6 · 0.25 · 2+0.4 · 2.6 · 2 · 3+1.3 · 0.25 · 3 | D67: m2 | E67: =2*2.6*0.25*2+0.4*2.6*2*3+1.3*0.25*3 -> 9.82
C68: *kolovozna ploča sa donje strane
C69: 4+2+1+1+1+3+2+1+3+2 | D69: m2 | E69: =4+2+1+1+1+3+2+1+3+2 -> 20.00
C70: *ploča za prijem napona pritisaka
C71: 4 · 1.25 | D71: m2 | E71: =4*1.25 -> 5.00
A72: 16 | B72: 132 | C72: Bušenje otvora u betonu za instalaciju atmosferske kanalizacije
C73: Obračun po broju otvora | D73: kom.
C74: *slivnici u AB kolovoznoj ploči
C75: 2 | D75: kom. | E75: 2.00
C76: *kroz glavni AB nosač (Ø250mm)
C77: 3 | D77: kom. | E77: 3.00
A78: 17 | B78: 135 | C78: Peskarenje betonskih površina
C79: Priprema betonske površine i armature za nanošenje novog betonskog i malterskog sloja ili zaštitnog premaza suvim peskarenjem. Ovim radovima obuhvaćene su sve betonske površine sem donje strane glavnih podužnih nosača. U cenu uračunat sav materijal i rad. Obračun po m2
C80: *gornja površina kolovozne ploče
C81: 8.5 · 76.5 | D81: m2 | E81: =8.5*76.25 -> 648.13
C82: *krila i konzole pešačkih staza
C83: 4 · 4.65 · 1.55 | D83: m2 | E83: =4*4.65*1.55 -> 28.83
C84: *parapet oporca
C85: 2 · 0.5 · 6.4 | D85: m2 | E85: =2*0.5*6.4 -> 6.40
C86: *gornja površina ležišne grede na mestima novih AB kvadera
C87: 1 · 1.15+2 · 1.1 · 1.15 | D87: m2 | E87: =1*1.15+2*1.1*1.15 -> 3.68
C88: *obalni stubovi
C89: 4 · 8 + 3.5 · 8 | D89: m2 | E89: =4*8+3.5*8 -> 60.00
C90: *rečni stubovi
C91: (5.8 · 6.7 · 2+0.8 · 6.7 · 2)+(5.8· 5.7· 2+0.8 · 5.7 · 2) | D91: m2 | E91: =(5.8*6.7*2+0.8*6.7*2)+(5.8*5.7*2+0.8*5.7*2) -> 163.68
C92: *bočne strane glavnih nosača A, B i C
C93: 165+172.2+165 | D93: m2 | E93: =165+172.2+165 -> 502.20
C94: *poprečni nosači
C95: 1.06 · 2.6 · 2 · 2 · 12+2.6 · 0.25 · 2 · 7 | D95: m2 | E95: =1.06*2.6*2*2*12+2.6*0.25*2*7 -> 141.39
C96: *kolovozna ploča sa donje strane
C97: 5.2 · 2.6 · 16+6.5 · 2.6 · 8 | D97: m2 | E97: =5.2*2.6*16+6.5*2.6*8 -> 351.52
C98: *ploča za prijem napona pritisaka
C99: ((( 4.6+3.3) · 0.5 · 1.3 · 2 · 4 + ( 4.1 + 2.8 ) · 0.5 · 1.3 · 2 · 4 ) · 2 | D99: m2 | E99: =((4.6+3.3)*0.5*1.3*2*4+(4.1+2.8)*0.5*1.3*2*4)*2 -> 153.92
C100: *konzolna ploča
C101: 75.4 · 1.0305 · 2 | D101: m2 | E101: =75.4*1.0305*2 -> 155.40
A102: 18 | B102: 136 | C102: Čišćеnjе pоvršinа vаzduhоm pоd pritiskоm
C103: sve površine koje se premazuju SN vezom
C104: 8.5 · 76.25
C105: Obračun po m2 . | D105: m2 | E105: =8.5*76.25 -> 648.13
A106: 19 | B106: 137 | C106: Čišćenje armature peskarenjem
C107: Čišćenje armature glavnih nosača i dva poprečna nosača u osama T2 i T5, mokrim ili suvim peskarenjem sa donje strane, uz dodatno lokalno čišćenje žičanim četkama, do „metalnog sjaja“. U cenu uračunat materijal i rad. Obračun po m2
C108: *glavni podužni nosači u osama A, B i C
C109: 75.4 · 0.4 · 3 | D109: m2 | E109: =75.4*0.4*3 -> 90.48
C110: *poprečni nosači u osama T2 i T5
C111: 2.6 · 0.25 · 2 · 2 | D111: m2 | E111: =2.6*0.25*2*2 -> 2.60
A112: 20 | B112: 138 | C112: Pranje betonskih površina vodom pod pritiskom
C113: Pranje odštemovanih zona betona i armature od prašine, vodom pod pristiskom (cca 200 bara). Mlaz vode se usmerava pod uglom od 45 stepeni u odnosu na površinu betona, sa razdaljine od 5cm. Obračun po m2
C114: *obalni stubovi
C115: 4 · 8+3.5 · 8 | D115: m2 | E115: =4*8+3.5*8 -> 60.00
C116: *rečni stubovi
C117: ( 5.8 · 6.7 · 2+0.8 · 6.7 · 2 ) + ( 5.8 · 5.7 · 2+0.8 · 5.7 · 2) | D117: m2 | E117: =(5.8*6.7*2+0.8*6.7*2)+(5.8*5.7*2+0.8*5.7*2) -> 163.68
C118: *bočne strane glavnih nosača A, B i C
C119: 165+172.2+165 | D119: m2 | E119: =165+172.2+165 -> 502.20
C120: *donje strane glavnih nosača A, B i C
C121: 75.4 · 0.4 · 3 | D121: m2 | E121: =75.4*0.4*3 -> 90.48
C122: *poprečni nosači
C123: 1.06 · 2.6 · 2 · 2 · 12+2.6 · 0.25 · 2 · 9 | D123: m2 | E123: =1.06*2.6*2*2*12+2.6*0.25*2*9 -> 143.99
C124: *kolovozna ploča sa donje strane
C125: 5.2 · 2.6 · 16+6.5 · 2.6 · 8 | D125: m2 | E125: =5.2*2.6*16+6.5*2.6*8 -> 351.52
C126: *ploča za prijem napona pritisaka
C127: ((4.6+3.3) · 0.5 · 1.3 · 2 · 4 + ( 4.1+2.8) · 0.5 · 1.3 · 2 · 4 ) · 2 | D127: m2 | E127: =((4.6+3.3)*0.5*1.3*2*4+(4.1+2.8)*0.5*1.3*2*4)*2 -> 153.92
C128: *konzolna ploča
C129: 75.4 · 1.0305 · 2 | D129: m2 | E129: =75.4*1.0305*2 -> 155.40
A130: 21 | B130: 140 | C130: Premazivanje betona SN vezom (stari- novi beton)
C131: gornja površina kolovozne ploče
C132: 8.5 · 76.25
C133: Obračun po m2 izvedenih radova. | D133: m2 | E133: =8.5*76.25 -> 648.13
A134: 22 | B134: 150 | C134: Rušenje klatna-pendela
C135: 0.3 · 0.4 · 0.84 · 3
C136: Obračun po m3 uklonjenog betona | D136: m3 | E136: =0.3*0.4*0.84*3 -> 0.30
A137: 23 | B137: 160 | C137: Izmeštanje instalacija
C138: *Demontaža i ponovna montaža dva stuba javne rasvete sa svetiljkama, na mostu.
C139: Obračunava se paušalno. | D139: pauš | E139: 1.00
F140: UKUPNO PRIPREMNI RADOVI
B142: 51_MO_200 | C142: ZEMLJANI RADOVI
A143: 24 | B143: 202 | C143: Iskop zemlje u zaleđini obalnih stubova
C144: Iskop materijala II i III kategorije za izgradnju novih prelaznih ploča i šljunčanog klina
C145: 2 · 6.4 · 3.8 · 4
C146: Obračun po m3 iskopa. | D146: m3 | E146: =2*6.4*4.8*4 -> 245.76
A147: 25 | B147: 206 | C147: Izrаdа šlјunčаnоg klinа
C148: Nabavka, transport i ugradnja šljunka prirodne mešavine sa zbijanjem do potrebne zbijenosti 70 Mpa najviši sloj
C149: 2 · 6.4 · 3.8 · 4
C150: Obračun po m3 ugrađenog šljunka | D150: m3 | E150: =2*6.4*3.8*4 -> 194.56
F151: UKUPNO ZEMLJANI RADOVI
B153: 51_MO_300 | C153: SKELE I OPLATE
A154: 26 | B154: 301 | C154: Montaža i demontaža viseće skele za sanaciju rasponske konstrukcije mosta
C155: Montaža i demontaža viseće skele za radove u svemu po važećim propisima i merama HTZ-a, prema projektu skele koji obezbeđuje izvođač radova. Skela mora biti statički stabilna, fiksirana i propisno uzemljena. Koristi se za se vreme trajanja radova na sanaciji rasponske konstrukcije. Za radove iznad železničke pruge obezbediti da deo viseće skele bude mobilan.
C156: 75.4 · 9
C157: Obračun po m2 površine pokrivene skelom. | D157: m2 | E157: =75.4*9 -> 678.60
A158: 27 | B158: 302 | C158: Montaža i demontaža fasadne skele za sanaciju rasponske konstrukcije mosta
C159: Montaža i demontaža metalne fasadne skele za radove u svemu po važećim propisima i merama HTZ-a. Skela mora biti statički stabilna, fiksirana i propisno uzemljena. Koristi se za se vreme trajanja radova na sanaciji stubova mosta.
C160: 4 · 8+3.5 · 8 + ( 5.8 · 6.7 · 2+0.8 · 6.7 · 2) + (5.8 · 5.7 · 2+0.8 · 5.7 · 2 ) | G160: =SUM(G1) -> 0.00
C161: Obračun po m2 vertikalne projekcije površine pokrivene skelom. | D161: m2 | E161: =4*8+3.5*8+(5.8*6.7*2+0.8*6.7*2)+(5.8*5.7*2+0.8*5.7*2) -> 223.68
F162: UKUPNO SKELE :
B164: 51_MO_500 | C164: R A D O V I O D B E T O N A
B165: 51_MO_510 | C165: RADOVI OD NEARMIRANOG BETONA
A166: 28 | B166: 512 | C166: Izravnavajući sloj betona ispod prelazne ploče
C167: Tampon od nearmiranog betona C12/15(MB 15) d=10 cm.
C168: 2 · 3.6 · 6.3
C169: Obračun po m2 ugrađenog betona. | D169: m2 | E169: =2*3.6*6.3 -> 45.36
A170: 29 | B170: 520 | C170: Izrada prelazne pešačke rampe na bankini Obračun po m3 ugrađenog betona.
C171: * kod FAS-a na ulazu | D171: m3 | E171: 1.00
C172: **na prilazu mostu | D172: m3 | E172: =4*4*0.15+1.5*4*0.15 -> 3.30
B173: 51_MO_550 | C173: RADOVI OD ARMIRANOG BETONA
B174: 552 | C174: Betoniranje prelazne ploče
C175: *ugradnja armiranog betona ploče: C30/37 (MB 35),
C176: 2x6.4
C177: Obračun po m3 ugrađenog betona. | D177: m3 | E177: 12.80
A178: 30 | B178: 553 | C178: Rаspоnskа kоnstrukciја оbјеktа оd аrmirаnоg bеtоnа
C179: Dodatna kоlоvоznа plоčа оd аrmirаnоg bеtоnа prеkо postojeće noseće konstrukcije Beton C35/45
C180: 76.2*(2 · 1.45 · 0.125+5.6 · 0.1) | D180: m3 | E180: =76.2*(2*1.45*0.125+5.6*0.1) -> 70.29
C181: Obračun po m3 ugrađenog betona.
A182: 31 | B182: 554 | C182: Betoniranje pešačkih staza i ivičnih venaca.
C183: *ugradnja ispune od stirobetona težine 300kg/m3; 0,18m3/m1.
C184: 85.6*(0.17+0.18) | D184: m3 | E184: =85.6*(0.17+0.18) -> 29.96
C185: *ugradnja armiranog betona staze: C35/45 (MB 40), V - 6, M - 150
C186: 85.6*(0.25+0.27) | D186: m3 | E186: =85.6*(0.25+0.27) -> 44.51
C187: Obračun po m3 ugrađenog betona.
F188: UKUPNO BETONSKI RADOVI:
B190: 51_MO_600 | C190: R A D O V I O D M E T A L A
A191: 32 | B191: 601 | C191: Nabavka, obrada, i ugradnja armature B500B za elemente konstrukcije mosta.
C192: Obračun po kg ugrađene armature | D192: kg | E192: 17350.00
A193: 33 | B193: 605 | C193: Nabavka i ugradnja novih ležišta
C194: zamena pendela neankerisanim elastomernim ležištima tip1 200*300*63
C195: Obračun po kom. ugrađenog ležišta | D195: kom | E195: 3.00
A196: 34 | B196: 660 | C196: Nabavka i ugradnja slivnika
C197: 480*300, nosivosti D400 sa izradom podloge od cementnog maltera za nivelaciju slivnika i ispunom od polimer betona u zoni slivnika.
C198: Obračun po kom. ugrađenog slivnika | D198: kom | E198: 8.00
A199: 35 | B199: 670 | C199: Čelične ograde na mostovima prema projektu
B200: 670.3. | C200: ostale cevne ili od profila
B201: 670.4 | C201: Izrada i postavljanje zaštitne mreže i čeličnog parapeta iznad pruge. Ukupna visina zastitne mreze 2 m, dok je celicni lim visine 50 cm(mereno od dna).Zaštitnu mrežu raditi od "grifovanog" pletiva od pocinkovane žice Ø2,5 mm sa okcima 20/20 mm. Na dnu mreže je čelični parapet od lima d=4mm. Mrežu uokviriti flahom ≠30.4 i ugraditi u ram od čeličnih L profila 40.40.5 | D201: m1 | E201: 12.50
A202: 36 | B202: 672 | C202: Čelične pločice za zavarivanje ograde
C203: dimenzija 12x16cm, d=20mm, sa zavarenim ankerima 4Φ12. Stubići ograde su na 2.0m.
C204: Obračun po komadu pločice. | D204: kom | E204: 43.00
F205: UKUPNO RADOVI OD METALA:
B207: 51_MO_700 | C207: ZAVRŠNI I OSTALI RADOVI
A208: 37 | B208: 710 | C208: Postavljanje betonskih ivičnjaka 18/24 (MB 50; M-150; V-6)
... 155 more rows

Sheet Pesacki most
A1: PEŠAČKI MOST
A2: PREDMER RADOVA
A4: R. br. | B4: Broj poz. | C4: OPIS | D4: Jed. mera | E4: Količina | F4: Jedinična cena | G4: Iznos bez PDVa
B5: 51_MO_100 | C5: PRIPREMNI RADOVI
A6: 1 | C6: Privremena saobraćajna signalizacija
C7: Postavljanje odgovarajuće saobraćajne signalizacije i opreme kojom će se obezbediti radovi na sanaciji mosta i i izrada Projekta privremene saobraćajne signalizacije
C8: Most će biti zatvoren za saobraćaj za sve vreme obavljanja radova osim za vozila za gradilište.
C9: Obračunava se paušalno. | D9: pauš
A10: 2 | B10: 101 | C10: Geodetski radovi
C11: u toku izvođenja radova. Ova pozicija obuhvata neophodna geodetska merenja radi nivelacije elememata kod izrade predviđenih pozicija radova i iizradu svih potrebnih Elaborata geodetskih radova za sve izvedene radove (Elaborati potrebni za dobijanje upotrebne dozvole)
C12: Obračunava se paušalno. | D12: pauš
B13: 51_MO_110 | C13: Čišćenje terena
A14: 3 | B14: 111 | C14: Uklanjanje šuta, raznog otpada, šiblja i granja I odvoz na gradsku deponiju
C15: u zoni krajnjih stubova, na keglama i ispod mosta celom dužinom.
C16: Obračunava se paušalno. | D16: pauš
B17: 51_MO_120 | C17: OSTALI PRIPREMNI RADOVI
A18: 4 | B18: 127 | C18: Uklanjanje / demontaža postojeće dilatacije I odvoz suta na gradsku deponiju
C19: na oba kraja mosta u dužini 4.3m
C20: 2 · 4.3
C21: Obračun je dat po m1 uklonjene dilatacije. | D21: m1 | E21: =2*4.3 -> 8.60
A22: 5 | B22: 130 | C22: Uklanjanje postojeće pešačke ograde sa mosta
C23: 1 · 85.6
C24: Obračun po m uklonjene ograde | D24: m1 | E24: =1*85.6 -> 85.60
B25: 131 | C25: Uklanjanje objekta ili pojedinih delova objekta
A26: 6 | B26: 131.2 | C26: Uklanjanje montažnih ploča kolovozne konstrukcije mosta zajedno sa slojem asfalta uz prethodno zasecanje asfalta duž kontakta susednih montažnih AB ploča I odvoz suta na gradsku deponiju
C27: (0.1+0.02) · 4.3 · 76.2
C28: Obračun po m3 uklonjenog betona | D28: m3 | E28: =(0.1+0.02)*4.3*76.2 -> 39.32
A29: 7 | B29: 131.3 | C29: Uklanjanje betona štemovanjem prosečne dubine 4cm I odvoz suta na gradsku deponiju
C30: Uklanjanje betona ručno (štemanjem) ili mašinskim putem (pikhamerima do 6kg). Štemovanjem treba formirati zonu pravilnog geometrijskog oblika bez isklinjavanja. Šut prikupiti, utovariti na kamion i odneti na gradsku deponiju.
C31: *obalni stubovi
C32: (1+0.5+0.5+0.5+0.5+1) · 0.04 | D32: m3 | E32: =(1+0.5+0.5+0.5+0.5+1)*0.04 -> 0.16
C33: *rečni stub u osi "2"
C34: 0.5 · 0.5+0.5 · 0.4 · 0.1 · 0.5 | D34: m3 | E34: =0.5*0.5+0.5*0.4*0.1*0.5 -> 0.26
C35: *kratki elementi
C36: 0.171 · 0.8 · 2 | D36: m3 | E36: =0.171*0.8*2 -> 0.27
A37: 8 | B37: 131.4 | C37: Uklanjanje betona štemovanjem
C38: Uklanjanje betona ručno (štemanjem) ili mašinskim putem (pikhamerima do 6kg). Štemovanjem treba formirati zonu pravilnog geometrijskog oblika bez isklinjavanja. Šut prikupiti, utovariti na kamion i odneti na gradsku deponiju.
C39: *rečni stub u osi "1"
C40: 0.2 · 0.4 · 3 | D40: m3
C41: Obračun po m3 uklonjenog betona | D41: m3 | E41: =0.2*0.4*3 -> 0.24
A42: 9 | B42: 131.5 | C42: Linijsko uklanjanje betona, prosečne dubine 5cm
C43: Uklanjanje betona ručno ili pikhamerima radi formiranja šlica za smeštaj dodatne armature kratkih elemenata dimenzija 4x5cm. Šut prikupiti, utovariti na kamion i odneti na gradsku deponiju.
C44: *bočna strana kratkih elemenati na rečnim stubovima
C45: 4 · 1.81 · 2 | D45: m1
C46: Obračun po m1 uklonjenog betona | D46: m1 | E46: =4*1.81*2 -> 14.48
A47: 10 | B47: 135 | C47: Peskarenje betonskih površina
C48: Priprema betonske površine i armature za nanošenje novog betonskog i malterskog sloja ili zaštitnog premaza suvim peskarenjem. Ovim radovima obuhvaćene su sve betonske površine sem donje strane glavnih podužnih nosača. U cenu uračunat sav materijal i rad.
C49: *obalni stubovi
C50: 4 · 8+3.5 · 8 | D50: m2 | E50: =4*8+3.5*8 -> 60.00
C51: *rečni stubovi zajedno sa kratkim elementima
C52: (1.4 · 2+0.8 · 2) · 7.55 · 2+(1.21 · 2+4.18 · 0.8) · 2 | D52: m2 | E52: =(1.4*2+0.8*2)*7.55*2+(1.21*2+4.18*0.8)*2 -> 77.97
A53: 11 | B53: 138 | C53: Pranje betonskih površina vodom pod pritiskom
C54: Pranje odštemovanih zona betona i armature od prašine, vodom pod pristiskom (cca 200 bara). Mlaz vode se usmerava pod uglom od 45 stepeni u odnosu na površinu betona, sa razdaljine od 5cm.
C55: *obalni stubovi
C56: 4 · 8+3.5 · 8 | D56: m2 | E56: =4*8+3.5*8 -> 60.00
C57: *rečni stubovi zajedno sa kratkim elementima
C58: (1.4 · 2+0.8 · 2) · 7.55 · 2+(1.21 · 2+4.18 · 0.8) · 2 | D58: m2 | E58: =(1.4*2+0.8*2)*7.55*2+(1.21*2+4.18*0.8)*2 -> 77.97
F59: UKUPNO PRIPREMNI RADOVI
B62: 51_MO_300 | C62: SKELE I OPLATE
A63: 12 | B63: 301 | C63: Montaža i demontaža viseće skele za sanaciju rasponske konstrukcije mosta
C64: Montaža i demontaža viseće skele za radove u svemu po važećim propisima i merama HTZ-a, prema projektu skele koji obezbeđuje izvođač radova. Skela mora biti statički stabilna, fiksirana i propisno uzemljena. Koristi se za se vreme trajanja radova na sanaciji rasponske konstrukcije. Za radove iznad železničke pruge obezbediti da deo viseće skele bude mobilan.
C65: Obračun po m2 površine pokrivene skelom. | D65: m2 | E65: =75.2*4.3 -> 323.36
A66: 13 | B66: 302 | C66: Montaža i demontaža fasadne skele za sanaciju stubova mosta
C67: Montaža i demontaža metalne fasadne skele za radove u svemu po važećim propisima i merama HTZ-a. Skela mora biti statički stabilna, fiksirana i propisno uzemljena. Koristi se za se vreme trajanja radova na sanaciji stubova mosta.
C68: 4.3 · 6+4.3 · 5+(0.8+1.4) · 7.55 · 2 · 2
C69: Obračun po m2 površine pokrivene skelom. | D69: m2 | E69: =4.3*6+4.3*5+(0.8+1.4)*7.55*2*2 -> 113.74
A70: 14 | B70: 303 | C70: Montaža i demontaža privremenih oslonaca za sanaciju rasponske konstrukcije pešačkog mosta
C71: Jaram postaviti van ose postojećih stubova mosta i osloniti na svoj temelj. Visinu stubova jarma odrediti na licu mesta nakon iskopa i izvođenja temelja za jarmove. Obaveza izvođača je da prilagodi jaram svojim materijalima i sredstvima tako da zadovolji nosivost od 200kN, te u svemu po važećim propisima i merama HTZ-a. Konstrukcija jarma i njegovi temelji ne smeju da zadiru u železnički profil. Jaram se mora obavezno uzemljiti. Koristi se za vreme trajanja radova na sanaciji čelične konstrukcije mosta. Uklanjaju se nakon očvršćavanja betona kolovozne ploče.
C72: 2 jarma ~6.5m +2x~8.5m
C73: Procenjena vrednost po jarmu | D73: kom | E73: 4.00
F74: UKUPNO SKELE :
B76: 51_MO_500 | C76: R A D O V I O D B E T O N A
B77: 51_MO_510 | C77: RADOVI OD NEARMIRANOG BETONA
B78: 51_MO_550 | C78: RADOVI OD ARMIRANOG BETONA
A79: 15 | B79: 553 | C79: Rаspоnskа kоnstrukciја оbјеktа оd аrmirаnоg bеtоnа
B80: 553.1 | C80: Glаvni plоčаsti nоsаč оd аrmirаnоg bеtоnа- spregnuta konstrukcija. d=12cm C35/45( MБ 45) ; М-150; М+S=2
C81: 76.2 · 0.486 | D81: m3 | E81: =76.2*0.486 -> 37.03
C82: Obračun po m3 ugrađenog betona.
A83: 16 | B83: 554 | C83: Betoniranje pešačkih staza i ivičnih venaca.
C84: Izrada armiranobetonskih parapetnih venaca. Beton MB 45 (C35/45); M-150; M+S=1;
C85: 85.6 · 2 · 0.035 | D85: m3 | E85: =85.6*2*0.035 -> 5.99
C86: Obračun po m3 ugrađenog betona.
F87: UKUPNO BETONSKI RADOVI:
B89: 51_MO_600 | C89: R A D O V I O D M E T A L A
A90: 17 | B90: 601 | C90: Nabavka, obrada, i ugradnja armature B500B za elemente konstrukcije mosta.
C91: Obračun po kg ugrađene armature | D91: kg | E91: 11,143.00
A92: 18 | B92: 602 | C92: Zamena ležišta
C93: Uklanjanje postojećih ležišta sa odvoženjem na deponiju | D93: kom | E93: 8.00
C94: zamena čeličnih ležišta neankerisanim elastomernim ležištima tip1 100*150*35- na oporcima 2x2kom | D94: kom | E94: 4.00
C95: zamena čeličnih ležišta neankerisanim elastomernim ležištima tip1 200*250*30- na oporcima 2x2kom | D95: kom | E95: 4.00
A96: 19 | B96: 630 | C96: 200*250*30-na srednjim stubovima 2x2kom
C97: usvojeni moždanici d/h=19/80mm
C98: Obračun po kom ugrađenih moždanika | D98: kom | E98: 1010.00
A99: 20 | B99: 640 | C99: Radovi na ojačanju čelične konstrukcije
C100: Obračun po kg ugrađenog čelika | D100: kg | E100: 5,000.00
A101: 21 | B101: 660 | C101: Nabavka i ugradnja slivnika
C102: Slivnik Tip S-13 za pešački i biciklistički saobraćaj, ima malu debljinu i težinu
C103: Obračun po kom. ugrađenog slivnika | D103: kom | E103: 2.00
A104: 22 | B104: 670 | C104: Čelične ograde na mostovima prema projektu
B105: 670.3. | C105: radovi na popravci I AKZ zastiti pesacke ograde mosta
C106: popravka postojece ograde | D106: m1 | E106: 85.6
C107: dodatni rukohvat od profila HOP 100*60*3 sa nastavkom stubica HOP 80*40*3 | D107: m1 | E107: 85.6
B108: 670.4 | C108: Izrada i postavljanje zaštitne mreže i čeličnog parapeta iznad pruge. Ukupna visina zastitne mreze 2 m, dok je celicni lim visine 50 cm(mereno od dna).Zaštitnu mrežu raditi od "grifovanog" pletiva od pocinkovane žice Ø2,5 mm sa okcima 20/20 mm. Na dnu mreže je čelični parapet od lima d=4mm. Mrežu uokviriti flahom ≠30.4 i ugraditi u ram od čeličnih L profila 40.40.5 | D108: m1 | E108: 12.50
A109: 23 | B109: 672 | C109: Čelične pločice za zavarivanje ograde
C110: dimenzija 12x16cm, d=20mm, sa zavarenim ankerima 4Φ12. Stubići ograde su na 2.0m.
C111: Obračun po komadu pločice. | D111: kom | E111: =2*43 -> 86.00
F112: UKUPNO RADOVI OD METALA:
B114: 51_MO_700 | C114: Z A V R Š N I I O S T A L I R A D O V I
A115: 24 | B115: 725 | C115: Izrada hidroizolacije kolovozne ploče metil - metakrilatom (MMA ).Premaz prajmerom.
C116: Obračun po m2 gotove izolacije.
C117: 76.2 · 4.05 | D117: m2 | E117: =76.2*4.05 -> 308.61
A118: 25 | B118: 730 | C118: Izrada poliuretanskog sloja sa kvarcnim posipom
C119: ploča mosta
C120: 76.2 · 3.75
C121: Obračun po m2 izvedenog premaza. | D121: m2 | E121: =76.2*3.75 -> 285.75
A122: 26 | B122: 740 | C122: Obnova AKZ zaštite mosta
C123: Obnova spoljne AKZ zaštite mosta min debljine 250mikrona | D123: m2
C124: Obračun po m2 izvedenog premaza. | D124: m2 | E124: 615.00
A125: 27 | B125: 780 | C125: Nabavka i montaža dilatacionih spojnica
C126: Ugradnja MA -60
C127: Obračunava se po m1 ugrađene dilatacije | D127: m1 | E127: =2*4.3 -> 8.60
A128: 28 | B128: 785 | C128: Izrada ab ispune dilatacije I dobetoniranje parapeta
C129: Beton MB 40 (C30/37), V12, M150, M+S=1
C130: Obračun po m3 ugrađenog betona. | D130: m3 | E130: =0.1*4.3 -> 0.43
F131: UKUPNO ZAVRŠNI I OSTALI RADOVI:
B133: 51_MO_800 | C133: P O S E B N I R A D O V I
A134: 29 | B134: 801 | C134: Postavljanje ankera sa zalivanjem rupa ekspandirajućim malterom
C135: Ugradnja ankera Ø16 za sanaciju kratkih elemenata stubova. Rupe za ankere su Ø18.
C136: ankeri za sanaciju kratkih elemenata stubova | D136: kom | E136: 24.00
A137: 30 | B137: 850 | C137: Reprofilacija lokalnih oštećenja obalnih stubova reparaturnim malterom RM1
C138: Nabavka reparaturnog maltera (RM1) i reprofilisanje – popunjavanje lokalnih oštećenja prosečne dubine 4cm, na prethodno pripremljenu površinu betona. Reparaturni malter se nanosi ručno, utiskivanjem u sloju debljine do 3cm. Ako je dubina odštemovane zone veća od 3cm, reparaturni malter naneti u više slojeva. Uz ivice elemenata koristiti jednostaranu oplatu. U cenu uračunata nabavka, transport i ugradnja materijala. *obalni stubovi
C139: 1+0.5+0.5+0.5+0.5+1
C140: Obračun po m2 malterisane površine. | D140: m2 | E140: =1+0.5+0.5+0.5+0.5+1 -> 4.00
A141: 31 | B141: 854 | C141: Impregnacja betonskih površina sredstvom za impregnaciju IS1
C142: Impregnacja betonskih površina sredstvom za impregnaciju IS1 u dva sloja, pomoću četke, valjaka ili opreme za raspršivanje pod niskim pritiskom, u svemu prema uputstvu poizvođača. U cenu uračunata nabavka, transport i ugradnja materijala. Prosečna potrošnja je 0.4kg/m2 (0,2kg/m2 po jednom sloju)
C143: *rečni stubovi
C144: (1.4 · 2+0.8 · 2) · 7.55 · 2+(0.6 · 0.3+0.6 · 1) · 2 · 2
C145: Obračun po m2 pokrivene površine. | D145: m2 | E145: =(1.4*2+0.8*2)*7.55*2+(0.6*0.3+0.6*1)*2*2 -> 69.56
A146: 32 | B146: 855 | C146: Nanošenje zaštitnog premaza ZP1
C147: Nanošenje zaštitnog premaza ZP1 pomoću četke, valjaka ili opreme za raspršivanje pod niskim pritiskom u dva sloja, u svemu prema uputstvu poizvođača. U cenu uračunata nabavka , transport i ugradnja materijala. Prosečna potrošnja je (0.15kg/m2+0.20kg/m2) = 0.35kg/m2.
C148: *obalni stubovi
C149: 4.3 · 6+4.3 · 5 | D149: m2 | E149: =4.3*6+4.3*5 -> 47.30
C150: *rečni stubovi zajedno sa kratkim elementima
C151: (1.4 · 2+0.8 · 2) · 7.55 · 2+(1.21 · 2+4.18 · 0.8) · 2 | D151: m2 | E151: =(1.4*2+0.8*2)*7.55*2+(1.21*2+4.18*0.8)*2 -> 77.97
A152: 33 | B152: 855 | C152: Zaštita armature od korozije premazom P1
C153: Premazivanje „otkrivenih“ šipki armature sredstvom za antikorozionu zašitu (premaz P1) i obezbeđenje bolje prionljivosti, nanošenjem četkom u dva sloja, na pripremljenu površinu šipki armature (pocenjena potrošnja 1,5kg/mm/m2 za jedan sloj)
C154: *rečni stubovi
C155: (0.2+0.4) · 3+0.2 · 0.2 | D155: m2 | E155: =(0.2+0.4)*3+0.2*0.2 -> 1.84
C156: *kratki elementi na rečnim stubovima
C157: ((0.29+0.58) · 0.8 · 2) · 2 | D157: m2 | E157: =((0.29+0.58)*0.8*2)*2 -> 2.78
A158: 34 | B158: 859 | C158: Betoniranje nedostajućeg delova preseka nalivanjem u oplati
C159: Betoniranje nedostajućih delova preseka rečnog stuba u osi "1" (odštemovana zona) i kratkih elemenata oba rečna stuba tadi pojačavanja kratkih elemenata, samougrađujućim (SCC) trofrakcijskim (Dmax=16mm) betonom MB40 (beton B2), nalivanjem. Oplatne ravni moraju biti od panela (nije dozoljena daščana oplata). U cenu ulaze rad, materijal, oprema, oplata, noseća konstrukcija oplate i nega betona.
C160: *rečni stub u osi "1"
C161: 0.2 · 0.4 · 3 | D161: m3 | E161: =0.2*0.4*3 -> 0.24
C162: *kratki elementi na rečnim stubovima
C163: (0.372 · 0.8+2 · 1.71 · 0.03+4 · 1.81 · 0.06 · 0.01) · 2 | D163: m3 | E163: =(0.372*0.8+2*1.71*0.03+4*1.81*0.06*0.01)*2 -> 0.81
A164: 35 | B164: 880 | C164: Nabavka, montaža i demontaža hidrauličkih presa za odizanje konstrukcije prilikom sanacija
C165: Potrebna presa je minimalnog kapaciteta 10 tona - 12kom
C166: Potrebna zauzetost- 2 dana prilikom uklanjanja ležišta + 1 dan za postavljanje novih ležišta
C168: Obračun po presi / dan | D168: dan | E168: 3.00
A169: 36 | B169: 890 | C169: Čišćеnје i pоprаvkа kеgli
C170: Procenjena površina kegli koju je potrebno presložiti i obložiti ~50m2
C171: Obračun po m2 izvršenog rada. | D171: m2 | E171: 50.00
A172: 37 | B172: 891 | C172: Izrada projekta izvedenog stanja
C173: Paušalno | D173: pauš
A174: 38 | B174: 893 | C174: Probno opterećenje
C175: Paušalno | D175: pauš
F176: UKUPNO POSEBNI RADOVI:
C178: UKUPNO SVI RADOVI:

Sheet Uklapanje puta
A2: PREDMER RADOVA UKLAPANJA MOSTA U POSTOJEĆE STANJE
A4: R. br. | B4: Broj poz. | C4: OPIS | D4: Jed. mera | E4: Količina | F4: Jedinična cena | G4: Iznos bez PDV-a
A5: 11_GR_100. PRIPREMNI RADOVI
A6: 1 | B6: 100.1 | C6: Skidanje sloja asfalta glodalicom od 0-10cm (prosečno d=5cm) sa direktnim utovarom materijala u kamion i odvozom materijala na deponiju | D6: m2 | E6: 207.00
A7: 2 | B7: 100.2 | C7: Izrada spojnice od specijalne dilatacione trake | D7: m | E7: 46.00
A8: UKUPNO PRIPREMNI RADOVI:
A10: 11_GR_300. KOLOVOZNA KONSTRUKCIJA
A11: 3 | B11: 300.1 | C11: Izrada donjeg nosećeg sloja od DKA 0/63 P=28m2, V=28m2*0.25cm=7m3 | D11: m3 | E11: 7.00
A12: 4 | B12: 300.2 | C12: Izrada donjeg nosećeg sloja od DKA 0/31.5 P=55m2, V=55m2*0.15cm=8.25m3 | D12: m3 | E12: 8.25
A13: 5 | B13: 300.3 | C13: Izrada bitumen.nosivog sloja BNS 22 d = 6cm P=207m2, V=207m2*0.06cm=12.5m3 | D13: m3 | E13: 12.42
A14: 6 | B14: 300.4 | C14: Izrada habajućeg sloja od asfalt betona AB11 d = 4cm P=207m2, V=207m2*0.04cm=8.5m3 | D14: m3 | E14: 8.50
A15: UKUPNO KOLOVOZNA KONSTRUKCIJA:
A17: UKUPNO TRASA:
A19: Napomena : Obračun se odnosi na uklapanje oba mosta - drumski i pešački most

Sheet Rekapitulacija
A2: REKAPITULACIJA
B4: VRSTA RADOVA | C4: Iznos (RSD)
A6: REKAPITULACIJA PREDMERA I PREDRAČUNA RADOVA ZA DRUMSKI MOST
A7: 51_MO_100 | B7: PRIPREMNI RADOVI
A8: 51_MO_200 | B8: ZEMLjANI RADOVI
A9: 51_MO_200 | B9: SKELE I OPLATE
A10: 51_MO_500 | B10: RADOVI OD BETONA
A11: 51_MO_600 | B11: RADOVI OD METALA
A12: 51_MO_700 | B12: ZAVRŠNI I OSTALI RADOVI
A13: 51_MO_800 | B13: POSEBNI RADOVI
B14: UKUPNO:
A16: REKAPITULACIJA PREDMERA I PREDRAČUNA RADOVA ZA PEŠAČKI MOST
A17: 51_MO_100 | B17: PRIPREMNI RADOVI
A18: 51_MO_200 | B18: ZEMLjANI RADOVI
A19: 51_MO_200 | B19: SKELE I OPLATE
A20: 51_MO_500 | B20: RADOVI OD BETONA
A21: 51_MO_600 | B21: RADOVI OD METALA
A22: 51_MO_700 | B22: ZAVRŠNI I OSTALI RADOVI
A23: 51_MO_800 | B23: POSEBNI RADOVI
B24: UKUPNO:
A26: PREDRAČUN RADOVA UKLAPANJA MOSTA U POSTOJEĆE STANJE
A27: 11 GR 100 | B27: PRIPREMNI RADOVI
A28: 11 GR 300 | B28: KOLOVOZNA KONSTRUKCIJA
B29: UKUPNO:
B31: UKUPNO (BEZ PDV-A)
B32: UKUPNO (SA PDV-OM)
